fUST/lending_fUST_20250719
["ID","MTS","AMOUNT","RATE_DAILY","PERIOD"]
[373264672,1752925859993,-460.0,0.00021491,2]
[373264674,1752925860003,-500.0,0.00021495,2]
[373264677,1752925860013,-500.0,0.00021495,2]
[373264679,1752925860023,-2210.93425464,0.000215,2]
[373264681,1752925860035,-160.0,0.00021509,3]
[373264683,1752925860045,-194.0,0.00021519,2]
[373264685,1752925860055,-1011.01879794,0.00021582,2]
[373264687,1752925860065,-292.247425,0.00021606,2]
[373264689,1752925860075,-255.714936,0.00021606,2]
[373264691,1752925860085,-255.714936,0.00021606,2]
[373264693,1752925860095,-1501.99373843,0.00021606,2]
[373264695,1752925860104,-161.83540056,0.00021616,2]
[373264697,1752925860114,-1500.0,0.00021635,2]
[373264699,1752925860124,-1517.06463871,0.00021635,2]
[373264701,1752925860134,-1500.0,0.00021635,2]
[373264703,1752925860143,-1353.45713381,0.00021635,2]
[373264705,1752925860153,-1006.97064334,0.00021635,2]
[373264707,1752925860163,-1500.0,0.00021635,2]
[373264709,1752925860173,-1500.0,0.00021649,2]
[373264711,1752925860183,-151.0,0.00021661,2]
[373264713,1752925860192,-151.0,0.00021661,2]
[373264716,1752925860213,-151.0,0.00021661,2]
[373264719,1752925860234,-1189.254076,0.00021661,2]
[373264722,1752925860248,-1189.254076,0.00021661,2]
[373264724,1752925860264,-244.357367,0.00021695,3]
[373264727,1752925860280,-194.0,0.00021714,2]
[373264730,1752925860297,-194.0,0.00021745,2]
[373264732,1752925860314,-6652.08970238,0.00021762,5]
[373264735,1752925860331,-885.62,0.00021763,2]
[373264738,1752925860349,-1390.91,0.00021763,2]
[373264741,1752925860365,-460.0,0.00021764,2]
[373264743,1752925860381,-2041.8,0.00021764,2]
[373264746,1752925860397,-1525.65,0.00021764,2]
[373264749,1752925860412,-1361.02,0.00021764,2]
[373264751,1752925860425,-1619.42,0.00021764,2]
[373264753,1752925860437,-471.24,0.00021764,2]
[373264756,1752925860451,-682.29,0.00021764,2]
[373264758,1752925860466,-665.74,0.00021764,2]
[373264761,1752925860480,-692.91,0.00021764,2]
[373264763,1752925860496,-1750.3,0.00021765,2]
[373264766,1752925860511,-1046.46,0.00021765,2]
[373264768,1752925860527,-777.78,0.00021765,2]
[373264771,1752925860538,-621.82,0.00021765,2]
[373264773,1752925860549,-789.44,0.00021765,2]
[373264775,1752925860563,-460.0,0.00021765,2]
[373264778,1752925860579,-500.0,0.00021769,2]
[373264780,1752925860591,-500.0,0.00021769,2]
[373264783,1752925860604,-267.29030668,0.00021779,2]
[373264785,1752925860619,-4000.0,0.00021792,4]
[373264788,1752925860634,-161.83540056,0.00021808,2]
[373264790,1752925860648,-194.0,0.00021847,2]
[373264793,1752925860668,-500.0,0.00021849,2]
[373264795,1752925860681,-108646.0674706,0.00021916,2]
[373264797,1752925860694,-151.0,0.00021916,2]
[373264800,1752925860708,-151.0,0.00021916,2]
[373264802,1752925860721,-151.0,0.00021916,2]
[373264805,1752925860734,-151.0,0.00021916,2]
[373264807,1752925860747,-151.0,0.00021916,2]
[373264809,1752925860762,-151.0,0.00021916,2]
[373264811,1752925860774,-151.0,0.00021916,2]
[373264813,1752925860786,-151.847431,0.00021916,2]
[373264816,1752925860799,-151.0,0.00021916,2]
[373264818,1752925860812,-151.0,0.00021916,2]
[373264820,1752925860824,-151.0,0.00021916,2]
[373264822,1752925860837,-163.19262,0.00021916,2]
[373264825,1752925860850,-151.0,0.00021916,2]
[373264827,1752925860863,-301.097827,0.00021916,2]
[373264829,1752925860876,-301.097827,0.00021916,2]
[373264832,1752925860889,-151.0,0.00021916,2]
[373264834,1752925860902,-301.102055,0.00021916,2]
[373264836,1752925860917,-162.754641,0.00021916,2]
[373264839,1752925860930,-162.754641,0.00021916,2]
[373264841,1752925860943,-151.0,0.00021916,2]
[373264843,1752925860956,-151.0,0.00021916,2]
[373264845,1752925860969,-151.0,0.00021916,2]
[373264848,1752925860981,-269.533577,0.00021916,2]
[373264850,1752925860992,-269.533577,0.00021916,2]
[373264852,1752925861005,-255.714936,0.00021917,2]
[373264855,1752925861018,-255.714936,0.00021917,2]
[373264857,1752925861031,-460.23160138,0.00021917,2]
[373264859,1752925861043,-151.0,0.00021918,2]
[373264861,1752925861057,-151.0,0.00021918,2]
[373264864,1752925861070,-151.0,0.00021918,2]
[373264866,1752925861081,-200.632593,0.00021918,2]
[373264868,1752925861090,-200.632593,0.00021918,2]
[373264870,1752925861099,-200.632593,0.00021918,2]
[373264872,1752925861109,-200.632593,0.00021918,2]
[373264874,1752925861118,-200.632593,0.00021918,2]
[373264876,1752925861127,-200.632593,0.00021918,2]
[373264878,1752925861136,-200.632593,0.00021918,2]
[373264880,1752925861145,-200.632593,0.00021918,2]
[373264882,1752925861158,-150.0,0.00021918,2]
[373264884,1752925861167,-500.0,0.00021973,2]
[373264886,1752925861178,-500.0,0.00021973,2]
[373264888,1752925861189,-500.0,0.00021973,2]
[373264890,1752925861198,-500.0,0.00021973,2]
[373264892,1752925861208,-500.0,0.00021973,2]
[373264893,1752925861219,-500.0,0.00021973,2]
[373264895,1752925861230,-500.0,0.00021973,2]
[373264897,1752925861240,-500.0,0.00021973,2]
[373264899,1752925861250,-500.0,0.00021973,2]
[373264901,1752925861261,-500.0,0.00021973,2]
[373264903,1752925861270,-500.0,0.00021973,2]
[373264905,1752925861279,-500.0,0.00021973,2]
[373264907,1752925861289,-194.0,0.00021997,2]
[373264909,1752925861299,-161.0,0.00022,7]
[373264911,1752925861310,-6263.64,0.00022,7]
[373264913,1752925861319,-18248.59,0.00022,7]
[373264915,1752925861328,-37333.2711413,0.00022,2]
[373264935,1752925861518,-11255.65860977,0.00022,2]
[373265046,1752925862626,-436.68438848,0.00016832,2]
[373265070,1752925863097,-23.31561152,0.00016832,2]
[373265072,1752925863107,-1364.28949469,0.00017008,2]
[373273127,1752925969543,228.51569946,0.00016327,2]
[373273129,1752925983281,22475.3767969,0.00015994,2]
[373273130,1752926102823,3868.745689,0.00015825,2]
[373273131,1752926125681,1687.665855,0.00015825,2]
[373273132,1752926181518,211.651964,0.000158,2]
[373273134,1752926459990,24900.0,0.00015732,2]
[373273135,1752926578902,5000.0,0.0001652,2]
[373273136,1752926625882,3605.58610931,0.0001652,2]
[373273137,1752926643043,5000.0,0.0001652,2]
[373273138,1752926643234,10000.0,0.00015731,2]
[373273139,1752926647113,50051.5880215,0.00015731,2]
[373273140,1752926658567,5000.0,0.0001652,2]
[373273141,1752926673905,5000.0,0.0001652,2]
[373273142,1752926689397,3797.28348671,0.0001652,2]
[373273144,1752926765960,482.963007,0.00013699,2]
[373273150,1752926973974,971.4852201,0.00015718,2]
[373273208,1752927038116,-219.57173524,0.0001653,2]
[373273210,1752927038126,-3307.10338487,0.00016631,2]
[373273212,1752927038136,-300.0,0.00016703,2]
[373273214,1752927038146,-300.0,0.00016703,2]
[373273216,1752927038156,-1200.0,0.00016703,2]
[373273218,1752927038165,-644.94,0.00016718,3]
[373273220,1752927038175,-429.95,0.00016719,3]
[373273222,1752927038185,-214.98,0.00016719,3]
[373273224,1752927038195,-866.0,0.0001672,2]
[373273226,1752927038204,-413.8,0.00016721,3]
[373273229,1752927038214,-345.38,0.00016721,3]
[373273232,1752927038224,-172.69,0.00016721,3]
[373273234,1752927038233,-518.11,0.00016721,3]
[373273235,1752927038243,-215.5694,0.00016723,2]
[373273237,1752927038252,-694.71,0.00016723,3]
[373273239,1752927038262,-10933.52786775,0.00016723,2]
[373273242,1752927038275,-321.06130044,0.00016723,2]
[373273245,1752927038287,-15642.11704493,0.00016723,2]
[373273247,1752927038297,-500.0,0.00016727,2]
[373273249,1752927038308,-500.0,0.00016727,2]
[373273251,1752927038317,-502.32014482,0.00016727,2]
[373273253,1752927038327,-500.0,0.00016727,2]
[373273255,1752927038336,-500.0,0.00016727,2]
[373273257,1752927038346,-500.0,0.00016727,2]
[373273259,1752927038356,-523.9694531,0.00016727,2]
[373273261,1752927038366,-500.0,0.00016727,2]
[373273263,1752927038375,-500.0,0.00016727,2]
[373273265,1752927038385,-500.0,0.00016727,2]
[373273267,1752927038394,-500.0,0.00016727,2]
[373273269,1752927038405,-500.0,0.00016727,2]
[373273271,1752927038415,-500.0,0.00016727,2]
[373273273,1752927038424,-500.0,0.00016727,2]
[373273275,1752927038436,-500.0,0.00016727,2]
[373273277,1752927038445,-500.0,0.00016727,2]
[373273279,1752927038455,-500.0,0.00016727,2]
[373273281,1752927038464,-500.0,0.00016727,2]
[373273283,1752927038474,-500.0,0.00016727,2]
[373273285,1752927038484,-500.0,0.00016727,2]
[373273287,1752927038493,-500.0,0.00016727,2]
[373273289,1752927038504,-500.0,0.00016727,2]
[373273290,1752927038514,-500.0,0.00016727,2]
[373273292,1752927038523,-500.0,0.00016727,2]
[373273294,1752927038533,-500.0,0.00016727,2]
[373273296,1752927038542,-209.20785017,0.00016727,2]
[373273298,1752927038552,-500.0,0.00016727,2]
[373273300,1752927038561,-500.0,0.00016727,2]
[373273302,1752927038573,-500.0,0.00016727,2]
[373273303,1752927038583,-500.0,0.00016727,2]
[373273305,1752927038592,-500.0,0.00016727,2]
[373273307,1752927038602,-500.0,0.00016727,2]
[373273309,1752927038611,-500.0,0.00016727,2]
[373273311,1752927038621,-500.0,0.00016727,2]
[373273313,1752927038631,-500.0,0.00016727,2]
[373273315,1752927038640,-500.0,0.00016727,2]
[373273318,1752927038658,-500.0,0.00016727,2]
[373273320,1752927038667,-500.0,0.00016727,2]
[373273322,1752927038677,-500.0,0.00016727,2]
[373273324,1752927038688,-500.0,0.00016727,2]
[373273325,1752927038697,-500.0,0.00016727,2]
[373273327,1752927038707,-500.0,0.00016727,2]
[373273329,1752927038717,-500.0,0.00016727,2]
[373273331,1752927038727,-500.0,0.00016727,2]
[373273334,1752927038736,-500.0,0.00016727,2]
[373273336,1752927038745,-500.0,0.00016727,2]
[373273338,1752927038755,-500.0,0.00016727,2]
[373273340,1752927038764,-500.0,0.00016727,2]
[373273342,1752927038774,-600.28572601,0.00016727,2]
[373273344,1752927038783,-500.0,0.00016727,2]
[373273346,1752927038793,-164.88032107,0.00016727,2]
[373273349,1752927038802,-500.0,0.00016727,2]
[373273352,1752927038812,-500.0,0.00016727,2]
[373273355,1752927038822,-500.0,0.00016727,2]
[373273358,1752927038832,-500.0,0.00016727,2]
[373273361,1752927038842,-500.0,0.00016727,2]
[373273364,1752927038853,-500.0,0.00016727,2]
[373273367,1752927038862,-500.0,0.00016727,2]
[373273370,1752927038871,-500.0,0.00016727,2]
[373273372,1752927038881,-500.0,0.00016727,2]
[373273374,1752927038890,-500.0,0.00016727,2]
[373273376,1752927038900,-500.0,0.00016727,2]
[373273378,1752927038910,-500.0,0.00016727,2]
[373273380,1752927038919,-510.75523099,0.00016727,2]
[373273382,1752927038929,-500.0,0.00016727,2]
[373273384,1752927038940,-500.0,0.00016727,2]
[373273386,1752927038949,-500.0,0.00016727,2]
[373273388,1752927038959,-500.0,0.00016727,2]
[373273390,1752927038969,-500.0,0.00016727,2]
[373273392,1752927038978,-500.0,0.00016727,2]
[373273394,1752927038987,-500.0,0.00016727,2]
[373273396,1752927038997,-500.0,0.00016727,2]
[373273398,1752927039007,-500.0,0.00016727,2]
[373273400,1752927039016,-500.0,0.00016727,2]
[373273402,1752927039026,-500.0,0.00016727,2]
[373273404,1752927039035,-500.0,0.00016727,2]
[373273406,1752927039045,-500.0,0.00016727,2]
[373273408,1752927039055,-500.0,0.00016727,2]
[373273410,1752927039065,-500.0,0.00016727,2]
[373273412,1752927039074,-500.0,0.00016727,2]
[373273414,1752927039084,-500.0,0.00016727,2]
[373273416,1752927039094,-500.0,0.00016727,2]
[373273418,1752927039103,-500.0,0.00016727,2]
[373273420,1752927039112,-500.0,0.00016727,2]
[373273422,1752927039122,-500.0,0.00016727,2]
[373273424,1752927039132,-500.0,0.00016727,2]
[373273426,1752927039141,-500.0,0.00016727,2]
[373273428,1752927039151,-500.0,0.00016727,2]
[373273431,1752927039160,-500.0,0.00016727,2]
[373273432,1752927039170,-500.0,0.00016727,2]
[373273435,1752927039180,-500.0,0.00016727,2]
[373273436,1752927039190,-500.0,0.00016727,2]
[373273452,1752927039326,-500.0,0.00016727,2]
[373273455,1752927039345,-650.0,0.00016727,2]
[373273457,1752927039355,-500.0,0.00016727,2]
[373273460,1752927039365,-500.0,0.00016727,2]
[373273462,1752927039375,-500.0,0.00016727,2]
[373273464,1752927039384,-500.0,0.00016727,2]
[373273466,1752927039394,-500.0,0.00016727,2]
[373273468,1752927039403,-500.0,0.00016728,2]
[373273470,1752927039413,-460.0,0.00016728,2]
[373273472,1752927039422,-460.39479643,0.00016728,2]
[373273474,1752927039432,-460.0,0.00016728,2]
[373273475,1752927039442,-460.0,0.00016728,2]
[373273477,1752927039451,-364.13966685,0.00016728,2]
[373273480,1752927039462,-352.6066,0.00016728,2]
[373273482,1752927039471,-212.05195182,0.00016728,2]
[373273484,1752927039481,-460.0,0.00016728,2]
[373273486,1752927039491,-460.0,0.00016728,2]
[373273488,1752927039500,-460.0,0.00016728,2]
[373273490,1752927039509,-460.0,0.00016729,2]
[373273492,1752927039518,-411.8078171,0.00016729,2]
[373273494,1752927039528,-460.0,0.00016729,2]
[373273496,1752927039538,-460.0,0.00016729,2]
[373273498,1752927039548,-460.0,0.00016729,2]
[373273499,1752927039557,-460.0,0.00016729,2]
[373273501,1752927039568,-460.0,0.00016729,2]
[373273504,1752927039581,-460.0,0.00016729,2]
[373273507,1752927039591,-460.0,0.00016729,2]
[373273510,1752927039601,-460.0,0.00016729,2]
[373273513,1752927039611,-460.0,0.00016729,2]
[373273516,1752927039621,-1226.27,0.00016729,2]
[373273519,1752927039631,-460.0,0.00016729,2]
[373273522,1752927039640,-3070.5,0.00016729,2]
[373273524,1752927039652,-460.0,0.00016729,2]
[373273526,1752927039662,-460.0,0.00016729,2]
[373273528,1752927039671,-460.0,0.00016729,2]
[373273531,1752927039680,-460.0,0.00016729,2]
[373273533,1752927039690,-460.0,0.0001673,2]
[373273535,1752927039699,-460.0,0.0001673,2]
[373273537,1752927039710,-460.0,0.0001673,2]
[373273539,1752927039719,-460.0,0.0001673,2]
[373273541,1752927039730,-460.0,0.0001673,2]
[373273543,1752927039741,-517.29962209,0.0001673,2]
[373273545,1752927039751,-460.0,0.0001673,2]
[373273547,1752927039761,-460.0,0.0001673,2]
[373273549,1752927039772,-579.43765627,0.0001673,2]
[373273551,1752927039782,-217.7196317,0.0001673,2]
[373273553,1752927039792,-460.0,0.0001673,2]
[373273555,1752927039801,-460.0,0.0001673,2]
[373273558,1752927039811,-3208.37,0.0001673,2]
[373273560,1752927039821,-460.0,0.0001673,2]
[373273562,1752927039830,-460.0,0.0001673,2]
[373273564,1752927039839,-460.0,0.0001673,2]
[373273566,1752927039849,-894.0,0.0001673,2]
[373273568,1752927039858,-463.910739,0.0001673,2]
[373273570,1752927039867,-484.39,0.0001673,2]
[373273572,1752927039877,-460.0,0.0001673,2]
[373273574,1752927039886,-460.0,0.0001673,2]
[373273576,1752927039896,-460.0,0.0001673,2]
[373273578,1752927039905,-460.0,0.0001673,2]
[373273580,1752927039914,-460.0,0.0001673,2]
[373273581,1752927039924,-1935.27,0.0001673,2]
[373273582,1752927039933,-460.0,0.0001673,2]
[373273583,1752927039943,-460.0,0.0001673,2]
[373273584,1752927039953,-989.97,0.0001673,2]
[373273585,1752927039963,-460.0,0.0001673,2]
[373273586,1752927039972,-460.0,0.0001673,2]
[373273587,1752927039982,-460.0,0.0001673,2]
[373273588,1752927039992,-460.0,0.0001673,2]
[373273589,1752927040002,-460.0,0.0001673,2]
[373273590,1752927040011,-978.7,0.0001673,2]
[373273591,1752927040020,-460.0,0.0001673,2]
[373273592,1752927040030,-460.0,0.0001673,2]
[373273593,1752927040039,-460.0,0.0001673,2]
[373273594,1752927040049,-460.0,0.0001673,2]
[373273595,1752927040059,-460.0,0.0001673,2]
[373273596,1752927040068,-460.0,0.0001673,2]
[373273597,1752927040078,-521.57,0.0001673,2]
[373273598,1752927040088,-460.0,0.0001673,2]
[373273599,1752927040098,-460.0,0.0001673,2]
[373273600,1752927040107,-500.0,0.0001673,2]
[373273601,1752927040117,-500.0,0.0001673,2]
[373273602,1752927040127,-500.0,0.0001673,2]
[373273603,1752927040137,-500.0,0.0001673,2]
[373273605,1752927040146,-213.3,0.0001673,2]
[373273607,1752927040156,-460.0,0.00016731,2]
[373273609,1752927040165,-460.0,0.00016731,2]
[373273611,1752927040176,-460.0,0.00016731,2]
[373273613,1752927040185,-473.32486984,0.00016731,2]
[373273615,1752927040195,-561.73503318,0.00016731,2]
[373273617,1752927040205,-460.0,0.00016731,2]
[373273619,1752927040215,-460.0,0.00016731,2]
[373273621,1752927040225,-460.0,0.00016731,2]
[373273623,1752927040235,-460.0,0.00016731,2]
[373273625,1752927040244,-460.0,0.00016731,2]
[373273627,1752927040254,-460.0,0.00016731,2]
[373273629,1752927040264,-460.0,0.00016731,2]
[373273631,1752927040273,-460.0,0.00016731,2]
[373273633,1752927040283,-460.0,0.00016731,2]
[373273635,1752927040292,-458.56401688,0.00016731,2]
[373273637,1752927040302,-460.0,0.00016731,2]
[373273639,1752927040311,-460.0,0.00016731,2]
[373273641,1752927040321,-460.0,0.00016731,2]
[373273643,1752927040330,-460.0,0.00016731,2]
[373273645,1752927040340,-460.0,0.00016731,2]
[373273647,1752927040350,-460.0,0.00016731,2]
[373273649,1752927040360,-460.0,0.00016731,2]
[373273651,1752927040369,-460.0,0.00016731,2]
[373273653,1752927040378,-460.0,0.00016731,2]
[373273655,1752927040388,-460.0,0.00016731,2]
[373273657,1752927040398,-460.0,0.00016731,2]
[373273659,1752927040408,-460.0,0.00016731,2]
[373273661,1752927040417,-460.81231697,0.00016731,2]
[373273663,1752927040427,-462.39356415,0.00016731,2]
[373273665,1752927040437,-462.55391539,0.00016731,2]
[373273667,1752927040447,-326.71788715,0.00016731,2]
[373273669,1752927040456,-460.748998,0.00016731,2]
[373273671,1752927040466,-460.0,0.00016731,2]
[373273673,1752927040475,-460.0,0.00016731,2]
[373273675,1752927040485,-460.0,0.00016731,2]
[373273677,1752927040495,-460.0,0.00016731,2]
[373273679,1752927040504,-460.0,0.00016731,2]
[373273681,1752927040514,-460.0,0.00016731,2]
[373273683,1752927040523,-460.0,0.00016731,2]
[373273685,1752927040532,-460.0,0.00016731,2]
[373273687,1752927040541,-465.59178409,0.00016731,2]
[373273689,1752927040550,-462.14506174,0.00016731,2]
[373273691,1752927040559,-460.0,0.00016731,2]
[373273693,1752927040569,-460.0,0.00016731,2]
[373273695,1752927040583,-460.0,0.00016731,2]
[373273697,1752927040592,-462.02314404,0.00016731,2]
[373273700,1752927040601,-460.0,0.00016731,2]
[373273703,1752927040611,-460.0,0.00016731,2]
[373273706,1752927040620,-500.0,0.00016731,2]
[373273708,1752927040629,-500.0,0.00016731,2]
[373273710,1752927040638,-460.0,0.00016731,2]
[373273712,1752927040648,-325.57932852,0.00016731,2]
[373273714,1752927040659,-460.0,0.00016731,2]
[373273716,1752927040669,-460.0,0.00016731,2]
[373273718,1752927040678,-460.0,0.00016731,2]
[373273720,1752927040689,-460.0,0.00016731,2]
[373273722,1752927040699,-460.0,0.00016731,2]
[373273724,1752927040708,-460.0,0.00016731,2]
[373273726,1752927040718,-460.0,0.00016731,2]
[373273728,1752927040727,-460.0,0.00016731,2]
[373273730,1752927040737,-460.0,0.00016731,2]
[373273733,1752927040747,-460.0,0.00016731,2]
[373273734,1752927040759,-460.0,0.00016731,2]
[373273736,1752927040768,-460.0,0.00016731,2]
[373273739,1752927040778,-464.03122356,0.00016731,2]
[373273741,1752927040788,-460.0,0.00016731,2]
[373273743,1752927040798,-460.0,0.00016731,2]
[373273745,1752927040808,-460.0,0.00016731,2]
[373273747,1752927040817,-460.0,0.00016731,2]
[373273749,1752927040826,-460.0,0.00016731,2]
[373273751,1752927040836,-460.0,0.00016731,2]
[373273753,1752927040845,-460.0,0.00016731,2]
[373273755,1752927040855,-460.0,0.00016731,2]
[373273757,1752927040864,-460.0,0.00016731,2]
[373273758,1752927040874,-460.0,0.00016731,2]
[373273760,1752927040884,-460.0,0.00016731,2]
[373273762,1752927040894,-460.0,0.00016731,2]
[373273765,1752927040903,-460.0,0.00016731,2]
[373273766,1752927040912,-460.0,0.00016731,2]
[373273769,1752927040922,-460.0,0.00016731,2]
[373273771,1752927040932,-460.0,0.00016731,2]
[373273773,1752927040941,-460.0,0.00016731,2]
[373273775,1752927040951,-460.0,0.00016731,2]
[373273776,1752927040960,-460.0,0.00016731,2]
[373273778,1752927040970,-460.0,0.00016731,2]
[373273781,1752927040979,-460.0,0.00016731,2]
[373273783,1752927040989,-460.0,0.00016731,2]
[373273785,1752927040998,-460.0,0.00016731,2]
[373273786,1752927041008,-460.0,0.00016731,2]
[373273788,1752927041018,-460.0,0.00016731,2]
[373273791,1752927041028,-460.0,0.00016731,2]
[373273793,1752927041039,-460.0,0.00016731,2]
[373273795,1752927041048,-460.0,0.00016731,2]
[373273796,1752927041058,-460.0,0.00016731,2]
[373273798,1752927041067,-460.0,0.00016731,2]
[373273801,1752927041078,-460.0,0.00016731,2]
[373273803,1752927041088,-461.68568256,0.00016731,2]
[373273805,1752927041098,-461.46124485,0.00016731,2]
[373273807,1752927041108,-327.48549571,0.00016731,2]
[373273809,1752927041117,-460.0,0.00016731,2]
[373273811,1752927041127,-460.0,0.00016731,2]
[373273813,1752927041137,-460.0,0.00016731,2]
[373273815,1752927041147,-460.0,0.00016731,2]
[373273817,1752927041156,-325.43358196,0.00016731,2]
[373273819,1752927041166,-460.0,0.00016731,2]
[373273821,1752927041175,-460.0,0.00016731,2]
[373273822,1752927041187,-460.0,0.00016731,2]
[373273824,1752927041196,-460.0,0.00016731,2]
[373273826,1752927041207,-460.0,0.00016731,2]
[373273828,1752927041217,-460.0,0.00016731,2]
[373273830,1752927041227,-460.0,0.00016731,2]
[373273832,1752927041237,-460.0,0.00016731,2]
[373273834,1752927041247,-460.0,0.00016731,2]
[373273836,1752927041257,-460.0,0.00016731,2]
[373273838,1752927041268,-460.0,0.00016731,2]
[373273840,1752927041277,-460.0,0.00016731,2]
[373273842,1752927041287,-460.0,0.00016731,2]
[373273844,1752927041298,-460.0,0.00016731,2]
[373273846,1752927041307,-460.0,0.00016731,2]
[373273848,1752927041317,-460.0,0.00016731,2]
[373273850,1752927041326,-460.0,0.00016731,2]
[373273852,1752927041338,-460.0,0.00016731,2]
[373273854,1752927041348,-460.0,0.00016731,2]
[373273856,1752927041358,-460.0,0.00016731,2]
[373273859,1752927041368,-460.0,0.00016731,2]
[373273860,1752927041377,-594.06,0.00016731,2]
[373273862,1752927041387,-460.0,0.00016731,2]
[373273864,1752927041397,-290.74670208,0.00016731,2]
[373273867,1752927041407,-464.3030722,0.00016731,2]
[373273868,1752927041416,-460.0,0.00016731,2]
[373273870,1752927041425,-460.0,0.00016731,2]
[373273872,1752927041435,-460.0,0.00016731,2]
[373273874,1752927041445,-460.0,0.00016731,2]
[373273876,1752927041455,-460.0,0.00016731,2]
[373273878,1752927041466,-460.0,0.00016731,2]
[373273880,1752927041476,-460.0,0.00016731,2]
[373273882,1752927041486,-460.0,0.00016731,2]
[373273884,1752927041495,-460.0,0.00016731,2]
[373273887,1752927041505,-460.0,0.00016731,2]
[373273888,1752927041515,-460.0,0.00016731,2]
[373273891,1752927041526,-461.00008369,0.00016731,2]
[373273892,1752927041536,-460.0,0.00016731,2]
[373273895,1752927041546,-460.0,0.00016731,2]
[373273897,1752927041555,-460.0,0.00016731,2]
[373273898,1752927041564,-460.0,0.00016731,2]
[373273900,1752927041575,-460.0,0.00016731,2]
[373273902,1752927041585,-460.0,0.00016731,2]
[373273904,1752927041595,-551.63428478,0.00016731,2]
[373273906,1752927041604,-460.0,0.00016731,2]
[373273908,1752927041615,-460.0,0.00016731,2]
[373273911,1752927041624,-460.0,0.00016731,2]
[373273912,1752927041634,-578.82,0.00016731,2]
[373273914,1752927041643,-460.0,0.00016731,2]
[373273917,1752927041655,-461.33600412,0.00016731,2]
[373273919,1752927041665,-460.0,0.00016731,2]
[373273921,1752927041674,-460.0,0.00016731,2]
[373273923,1752927041684,-460.0,0.00016731,2]
[373273925,1752927041693,-460.0,0.00016731,2]
[373273926,1752927041702,-460.0,0.00016731,2]
[373273929,1752927041711,-460.0,0.00016731,2]
[373273931,1752927041721,-460.0,0.00016731,2]
[373273933,1752927041731,-447.0390289,0.00016731,2]
[373273935,1752927041741,-460.0,0.00016731,2]
[373273936,1752927041751,-260.14990319,0.00016731,2]
[373273939,1752927041761,-460.0,0.00016731,2]
[373273941,1752927041770,-460.0,0.00016731,2]
[373273943,1752927041783,-460.0,0.00016731,2]
[373273945,1752927041792,-460.0,0.00016731,2]
[373273947,1752927041802,-460.0,0.00016731,2]
[373273949,1752927041811,-460.0,0.00016731,2]
[373273951,1752927041821,-460.0,0.00016731,2]
[373273953,1752927041831,-461.16527162,0.00016731,2]
[373273955,1752927041840,-460.0,0.00016731,2]
[373273957,1752927041850,-460.0,0.00016731,2]
[373273959,1752927041859,-460.0,0.00016731,2]
[373273961,1752927041868,-460.0,0.00016731,2]
[373273963,1752927041878,-460.0,0.00016731,2]